[Event "*** SCC Grand Prix: Titled Tuesday Blitz"]
[Site "Chess.com"]
[Date "2020.08.11"]
[Round "2"]
[White "Ind1anStar"]
[Black "DrVelja"]
[Result "0-1"]
[WhiteElo "2510"]
[BlackElo "2768"]
[TimeControl "180+1"]
[EndTime "10:18:32 PDT"]
[Termination "DrVelja won by resignation"]

1. c4 {[%clk 0:03:00.9]} 1... Nf6 {[%clk 0:02:59]} 2. Nc3 {[%clk 0:03:00.8]}
2... e5 {[%clk 0:02:59.2]} 3. g3 {[%clk 0:03:00.7]} 3... d5 {[%clk 0:02:58]} 4.
cxd5 {[%clk 0:03:00.4]} 4... Nxd5 {[%clk 0:02:58.9]} 5. Bg2 {[%clk 0:03:01]}
5... Nb6 {[%clk 0:02:59.4]} 6. d3 {[%clk 0:02:59.8]} 6... Nc6 {[%clk 0:02:58.6]}
7. Be3 {[%clk 0:02:54.6]} 7... Bd6 {[%clk 0:02:55.7]} 8. Nf3 {[%clk 0:02:54.1]}
8... O-O {[%clk 0:02:55.1]} 9. O-O {[%clk 0:02:51]} 9... Re8 {[%clk 0:02:55.3]}
10. a3 {[%clk 0:02:46.8]} 10... Bf8 {[%clk 0:02:42.4]} 11. b4 {[%clk 0:02:42.3]}
11... a5 {[%clk 0:02:18.3]} 12. b5 {[%clk 0:02:31.3]} 12... Nd4 {[%clk
0:02:15.9]} 13. a4 {[%clk 0:01:41]} 13... Bg4 {[%clk 0:02:02.6]} 14. Bxd4 {[%clk
0:01:06.7]} 14... exd4 {[%clk 0:02:03.5]} 15. Ne4 {[%clk 0:01:07]} 15... Nd5
{[%clk 0:01:17.3]} 16. Qb3 {[%clk 0:00:40.7]} 16... Be6 {[%clk 0:00:47.9]} 17.
Qb2 {[%clk 0:00:36.7]} 17... Bb4 {[%clk 0:00:27.1]} 18. Nxd4 {[%clk 0:00:24.4]}
18... f5 {[%clk 0:00:27]} 19. Nxe6 {[%clk 0:00:17.8]} 19... Rxe6 {[%clk
0:00:27.9]} 20. Qb3 {[%clk 0:00:09.6]} 20... c6 {[%clk 0:00:28.3]} 21. bxc6
{[%clk 0:00:08.7]} 21... bxc6 {[%clk 0:00:29.2]} 22. Nc3 {[%clk 0:00:07.2]}
22... Bxc3 {[%clk 0:00:25.6]} 23. Bxd5 {[%clk 0:00:07.3]} 23... Qxd5 {[%clk
0:00:26.2]} 24. Qxc3 {[%clk 0:00:07.5]} 24... Rxe2 {[%clk 0:00:26.9]} 25. Rae1
{[%clk 0:00:07.4]} 25... Rae8 {[%clk 0:00:27.1]} 26. Rxe2 {[%clk 0:00:06.8]}
26... Rxe2 {[%clk 0:00:28]} 27. Rb1 {[%clk 0:00:04.3]} 27... h6 {[%clk
0:00:25.2]} 28. Qb3 {[%clk 0:00:02.9]} 28... Re1+ {[%clk 0:00:24.3]} 29. Rxe1
{[%clk 0:00:02.9]} 29... Qxb3 {[%clk 0:00:25.2]} 0-1

[Event "*** SCC Grand Prix: Titled Tuesday Blitz"]
[Site "Chess.com"]
[Date "2020.08.11"]
[Round "2"]
[White "albano87"]
[Black "chito89"]
[Result "1-0"]
[WhiteElo "2520"]
[BlackElo "2742"]
[TimeControl "180+1"]
[EndTime "10:18:32 PDT"]
[Termination "albano87 won by resignation"]

1. e4 {[%clk 0:03:00.9]} 1... c5 {[%clk 0:02:59]} 2. Nf3 {[%clk 0:03:00]} 2...
e6 {[%clk 0:02:58.4]} 3. d4 {[%clk 0:02:59.6]} 3... cxd4 {[%clk 0:02:58.8]} 4.
Nxd4 {[%clk 0:02:59.3]} 4... Nc6 {[%clk 0:02:57.1]} 5. Nb5 {[%clk 0:02:57.9]}
5... d6 {[%clk 0:02:55.8]} 6. Bf4 {[%clk 0:02:57.7]} 6... e5 {[%clk 0:02:50.6]}
7. Be3 {[%clk 0:02:58.3]} 7... a6 {[%clk 0:02:44.2]} 8. N5c3 {[%clk 0:02:57.7]}
8... Nf6 {[%clk 0:02:36.1]} 9. Nd2 {[%clk 0:02:55]} 9... Be6 {[%clk 0:02:33]}
10. Bg5 {[%clk 0:02:46.6]} 10... Be7 {[%clk 0:02:29.8]} 11. Nc4 {[%clk
0:02:44.2]} 11... Nd4 {[%clk 0:02:19.2]} 12. Ne3 {[%clk 0:02:40.1]} 12... O-O
{[%clk 0:02:15.6]} 13. Bxf6 {[%clk 0:02:36.4]} 13... Bxf6 {[%clk 0:02:16.5]} 14.
Ncd5 {[%clk 0:02:36.7]} 14... Bg5 {[%clk 0:02:15.5]} 15. c3 {[%clk 0:02:33.3]}
15... Nc6 {[%clk 0:02:13.2]} 16. Bd3 {[%clk 0:02:29.4]} 16... Ne7 {[%clk
0:02:05.5]} 17. Bc2 {[%clk 0:02:22.3]} 17... g6 {[%clk 0:01:33.7]} 18. O-O
{[%clk 0:02:18]} 18... f5 {[%clk 0:01:32.5]} 19. exf5 {[%clk 0:02:13.1]} 19...
gxf5 {[%clk 0:01:30.5]} 20. Bb3 {[%clk 0:02:08.2]} 20... Kh8 {[%clk 0:01:28.3]}
21. Qh5 {[%clk 0:02:07.4]} 21... Nxd5 {[%clk 0:01:19.9]} 22. Bxd5 {[%clk
0:02:02.9]} 22... Bd7 {[%clk 0:01:01.8]} 23. Rfe1 {[%clk 0:01:55.2]} 23... Bc6
{[%clk 0:00:53.9]} 24. Bxc6 {[%clk 0:01:47.6]} 24... bxc6 {[%clk 0:00:54.8]} 25.
Nc4 {[%clk 0:01:40.4]} 25... e4 {[%clk 0:00:41.4]} 26. Nxd6 {[%clk 0:01:36.2]}
26... Qxd6 {[%clk 0:00:42.3]} 27. Qxg5 {[%clk 0:01:34.2]} 27... Rf6 {[%clk
0:00:42.6]} 28. Rad1 {[%clk 0:01:24.1]} 28... Qe5 {[%clk 0:00:42.9]} 29. Rxe4
{[%clk 0:01:20.3]} 29... Rd6 {[%clk 0:00:38.6]} 30. Rxd6 {[%clk 0:01:15.5]}
30... Qxd6 {[%clk 0:00:36.8]} 31. Re1 {[%clk 0:01:10.6]} 31... Rf8 {[%clk
0:00:37]} 32. g3 {[%clk 0:01:03.9]} 32... Qd5 {[%clk 0:00:36]} 33. Re7 {[%clk
0:00:59.5]} 33... Qd1+ {[%clk 0:00:32.6]} 34. Kg2 {[%clk 0:00:59.1]} 34... Qd5+
{[%clk 0:00:33.5]} 35. Kh3 {[%clk 0:00:51.2]} 35... Qg8 {[%clk 0:00:34.1]} 36.
Qxg8+ {[%clk 0:00:45.8]} 36... Kxg8 {[%clk 0:00:35]} 37. Ra7 {[%clk 0:00:42.4]}
37... Rd8 {[%clk 0:00:35.9]} 38. Rxa6 {[%clk 0:00:36.6]} 38... Rd2 {[%clk
0:00:36.8]} 39. Rb6 {[%clk 0:00:31.9]} 39... Rxf2 {[%clk 0:00:35.6]} 40. a4
{[%clk 0:00:30]} 40... c5 {[%clk 0:00:35.8]} 41. a5 {[%clk 0:00:27.9]} 41... Rf1
{[%clk 0:00:36.4]} 42. b4 {[%clk 0:00:27.6]} 42... Ra1 {[%clk 0:00:37.3]} 43. a6
{[%clk 0:00:25.3]} 43... cxb4 {[%clk 0:00:34.9]} 44. cxb4 {[%clk 0:00:26.2]} 1-0

[Event "*** SCC Grand Prix: Titled Tuesday Blitz"]
[Site "Chess.com"]
[Date "2020.08.11"]
[Round "2"]
[White "redbaron8888"]
[Black "okriak"]
[Result "0-1"]
[WhiteElo "2405"]
[BlackElo "2763"]
[TimeControl "180+1"]
[EndTime "10:18:32 PDT"]
[Termination "okriak won by resignation"]

1. d4 {[%clk 0:03:00.9]} 1... d5 {[%clk 0:02:59.4]} 2. c4 {[%clk 0:03:00.1]}
2... e6 {[%clk 0:02:59.6]} 3. Nf3 {[%clk 0:02:58.1]} 3... c6 {[%clk 0:02:59.6]}
4. Qc2 {[%clk 0:02:57.7]} 4... dxc4 {[%clk 0:02:58.7]} 5. Qxc4 {[%clk
0:02:57.1]} 5... Nf6 {[%clk 0:02:58.9]} 6. g3 {[%clk 0:02:56.7]} 6... b5 {[%clk
0:02:58.6]} 7. Qc2 {[%clk 0:02:56.6]} 7... Bb7 {[%clk 0:02:59.1]} 8. Bg2 {[%clk
0:02:56.8]} 8... Nbd7 {[%clk 0:02:57.1]} 9. O-O {[%clk 0:02:48.4]} 9... c5
{[%clk 0:02:57]} 10. dxc5 {[%clk 0:02:41.1]} 10... Bxc5 {[%clk 0:02:56.4]} 11.
Rd1 {[%clk 0:02:39.5]} 11... Qb6 {[%clk 0:02:54.1]} 12. e3 {[%clk 0:02:37.5]}
12... Rc8 {[%clk 0:02:52.3]} 13. Qe2 {[%clk 0:02:37.1]} 13... O-O {[%clk
0:02:51.2]} 14. Nc3 {[%clk 0:02:36.2]} 14... a6 {[%clk 0:02:48.3]} 15. Bd2
{[%clk 0:02:34.5]} 15... Rfd8 {[%clk 0:02:45.7]} 16. h3 {[%clk 0:02:31.8]} 16...
Nd5 {[%clk 0:02:42.3]} 17. a3 {[%clk 0:02:25.6]} 17... N7f6 {[%clk 0:02:39.1]}
18. Rac1 {[%clk 0:02:21.7]} 18... h6 {[%clk 0:02:31.8]} 19. b4 {[%clk
0:02:16.8]} 19... Be7 {[%clk 0:02:28]} 20. Nxd5 {[%clk 0:02:16.6]} 20... Bxd5
{[%clk 0:02:22.6]} 21. Rxc8 {[%clk 0:02:12.7]} 21... Rxc8 {[%clk 0:02:22.4]} 22.
Rc1 {[%clk 0:02:13.6]} 22... Rc6 {[%clk 0:02:10.3]} 23. Qe1 {[%clk 0:02:07.2]}
23... Qc7 {[%clk 0:02:08.3]} 24. Nd4 {[%clk 0:02:03.6]} 24... Bxg2 {[%clk
0:02:00.2]} 25. Kxg2 {[%clk 0:01:54.7]} 25... Rc4 {[%clk 0:01:59.8]} 26. Rxc4
{[%clk 0:01:33.5]} 26... bxc4 {[%clk 0:01:59.3]} 27. e4 {[%clk 0:01:14.7]} 27...
h5 {[%clk 0:01:50.7]} 28. Bc3 {[%clk 0:01:11]} 28... g6 {[%clk 0:01:47.8]} 29.
a4 {[%clk 0:01:08.2]} 29... e5 {[%clk 0:01:46]} 30. Nf3 {[%clk 0:01:06.1]} 30...
Bd6 {[%clk 0:01:35.8]} 31. b5 {[%clk 0:01:04.4]} 31... axb5 {[%clk 0:01:34.3]}
32. axb5 {[%clk 0:01:05.3]} 32... Qb7 {[%clk 0:01:27.2]} 33. Bxe5 {[%clk
0:00:58.5]} 33... Bxe5 {[%clk 0:01:17]} 34. Nxe5 {[%clk 0:00:59.4]} 34... Qxb5
{[%clk 0:01:17.1]} 35. Nf3 {[%clk 0:00:42.4]} 35... Qc6 {[%clk 0:01:16]} 36. e5
{[%clk 0:00:40.1]} 36... Nd5 {[%clk 0:01:09.6]} 37. e6 {[%clk 0:00:38.3]} 37...
Qxe6 {[%clk 0:01:06.4]} 38. Qxe6 {[%clk 0:00:30.4]} 38... fxe6 {[%clk
0:01:05.9]} 39. Nd4 {[%clk 0:00:30.8]} 39... c3 {[%clk 0:00:59.3]} 40. Nc2
{[%clk 0:00:28.6]} 40... Kf7 {[%clk 0:00:58.7]} 41. Kf3 {[%clk 0:00:28.8]} 41...
e5 {[%clk 0:00:51.1]} 42. Ke4 {[%clk 0:00:26.9]} 42... Ke6 {[%clk 0:00:51.6]}
43. f4 {[%clk 0:00:25.5]} 43... h4 {[%clk 0:00:48.2]} 44. fxe5 {[%clk
0:00:20.1]} 44... hxg3 {[%clk 0:00:45.9]} 45. Kf3 {[%clk 0:00:20.2]} 45... Kxe5
{[%clk 0:00:43.9]} 46. Kxg3 {[%clk 0:00:20.3]} 46... Ke4 {[%clk 0:00:44.3]} 47.
Kg4 {[%clk 0:00:20.4]} 47... Ne3+ {[%clk 0:00:43.7]} 0-1

[Event "*** SCC Grand Prix: Titled Tuesday Blitz"]
[Site "Chess.com"]
[Date "2020.08.11"]
[Round "2"]
[White "AniJak"]
[Black "JonahWillow"]
[Result "0-1"]
[WhiteElo "2313"]
[BlackElo "2742"]
[TimeControl "180+1"]
[EndTime "10:18:32 PDT"]
[Termination "JonahWillow won by resignation"]

1. e4 {[%clk 0:03:00.9]} 1... c5 {[%clk 0:03:00]} 2. Nc3 {[%clk 0:03:00.2]} 2...
Nc6 {[%clk 0:03:00.2]} 3. g3 {[%clk 0:03:00.8]} 3... g6 {[%clk 0:03:00.4]} 4.
Bg2 {[%clk 0:03:01.2]} 4... Bg7 {[%clk 0:03:01.3]} 5. d3 {[%clk 0:03:01.3]} 5...
e6 {[%clk 0:03:01.1]} 6. Be3 {[%clk 0:03:01]} 6... Nd4 {[%clk 0:02:59.9]} 7. Qd2
{[%clk 0:03:00.9]} 7... Ne7 {[%clk 0:03:00.3]} 8. Nd1 {[%clk 0:03:00.8]} 8...
O-O {[%clk 0:02:59.6]} 9. c3 {[%clk 0:03:00.8]} 9... Ndc6 {[%clk 0:02:59.9]} 10.
Bxc5 {[%clk 0:03:00.9]} 10... d6 {[%clk 0:02:59]} 11. Be3 {[%clk 0:03:00.7]}
11... b6 {[%clk 0:02:59.9]} 12. Bh6 {[%clk 0:02:57.3]} 12... Bb7 {[%clk
0:03:00.8]} 13. Bxg7 {[%clk 0:02:57.4]} 13... Kxg7 {[%clk 0:03:01.7]} 14. h4
{[%clk 0:02:57.4]} 14... h5 {[%clk 0:03:02.2]} 15. Nh3 {[%clk 0:02:57]} 15...
Rc8 {[%clk 0:02:59.6]} 16. O-O {[%clk 0:02:56.1]} 16... Qd7 {[%clk 0:02:57.4]}
17. f4 {[%clk 0:02:56]} 17... Na5 {[%clk 0:02:54.9]} 18. Ne3 {[%clk 0:02:54.1]}
18... f5 {[%clk 0:02:50]} 19. Ng5 {[%clk 0:02:52.7]} 19... Ng8 {[%clk
0:02:42.1]} 20. b4 {[%clk 0:02:45.1]} 20... Nc6 {[%clk 0:02:28.2]} 21. d4 {[%clk
0:02:45.3]} 21... Nce7 {[%clk 0:02:23.6]} 22. d5 {[%clk 0:02:42.7]} 22... exd5
{[%clk 0:02:19.8]} 23. exd5 {[%clk 0:02:42.8]} 23... Rfe8 {[%clk 0:02:12.8]} 24.
c4 {[%clk 0:02:39.2]} 24... Nf6 {[%clk 0:02:09.4]} 25. Ne6+ {[%clk 0:02:36.5]}
25... Kh7 {[%clk 0:02:05.8]} 26. Qd4 {[%clk 0:02:34.4]} 26... Neg8 {[%clk
0:02:06.1]} 27. Ng5+ {[%clk 0:02:19.2]} 27... Kg7 {[%clk 0:02:05]} 28. Rae1
{[%clk 0:02:19.1]} 28... Ba6 {[%clk 0:01:59]} 29. Rc1 {[%clk 0:01:49]} 29... Qa4
{[%clk 0:01:55.1]} 30. Ne6+ {[%clk 0:01:32.1]} 30... Kh7 {[%clk 0:01:53.8]} 31.
Ng5+ {[%clk 0:01:32]} 31... Kg7 {[%clk 0:01:53.5]} 32. Ne6+ {[%clk 0:01:31.9]}
32... Kh7 {[%clk 0:01:52.4]} 33. Qd3 {[%clk 0:01:17.8]} 33... Qxb4 {[%clk
0:01:50.9]} 34. Nxf5 {[%clk 0:01:13.8]} 34... gxf5 {[%clk 0:01:43.4]} 35. Qxf5+
{[%clk 0:01:13.5]} 35... Kh8 {[%clk 0:01:44.1]} 36. Be4 {[%clk 0:01:06.9]} 36...
Bxc4 {[%clk 0:01:36]} 37. Rfe1 {[%clk 0:00:48.3]} 37... Ba6 {[%clk 0:01:31.8]}
38. Ng5 {[%clk 0:00:42.3]} 38... Rxc1 {[%clk 0:01:29.9]} 39. Rxc1 {[%clk
0:00:38.7]} 39... Rxe4 {[%clk 0:01:23.7]} 40. Nxe4 {[%clk 0:00:30.3]} 40... Qxe4
{[%clk 0:01:24.6]} 41. Qxe4 {[%clk 0:00:26.2]} 41... Nxe4 {[%clk 0:01:25.5]} 42.
Rc7 {[%clk 0:00:26.3]} 42... Nxg3 {[%clk 0:01:22]} 43. Rxa7 {[%clk 0:00:26.5]}
43... Bc4 {[%clk 0:01:21.3]} 44. a4 {[%clk 0:00:24.8]} 44... Bxd5 {[%clk
0:01:20.3]} 45. Ra6 {[%clk 0:00:23.3]} 45... Bc6 {[%clk 0:01:04]} 46. a5 {[%clk
0:00:22]} 46... Ne2+ {[%clk 0:00:58.9]} 47. Kf2 {[%clk 0:00:21.2]} 47... Nxf4
{[%clk 0:00:59.1]} 48. Rxb6 {[%clk 0:00:20.8]} 48... Nd3+ {[%clk 0:00:52.6]} 49.
Ke3 {[%clk 0:00:18.8]} 49... Ne5 {[%clk 0:00:53.4]} 50. a6 {[%clk 0:00:19.3]}
50... Nc4+ {[%clk 0:00:53.7]} 51. Kd4 {[%clk 0:00:16.3]} 51... Nxb6 {[%clk
0:00:54.6]} 0-1

[Event "*** SCC Grand Prix: Titled Tuesday Blitz"]
[Site "Chess.com"]
[Date "2020.08.11"]
[Round "2"]
[White "PowerThinking2650"]
[Black "Karina_Ivanova"]
[Result "1-0"]
[WhiteElo "2445"]
[BlackElo "2231"]
[TimeControl "180+1"]
[EndTime "10:18:34 PDT"]
[Termination "PowerThinking2650 won by resignation"]

1. e4 {[%clk 0:03:00.9]} 1... c6 {[%clk 0:02:58]} 2. d4 {[%clk 0:03:00.4]} 2...
d5 {[%clk 0:02:58]} 3. Nc3 {[%clk 0:03:00.8]} 3... dxe4 {[%clk 0:02:58.1]} 4.
Nxe4 {[%clk 0:03:01.7]} 4... Bf5 {[%clk 0:02:59]} 5. Ng3 {[%clk 0:03:01.5]} 5...
Bg6 {[%clk 0:02:59]} 6. h4 {[%clk 0:03:02]} 6... h6 {[%clk 0:02:58.9]} 7. Nf3
{[%clk 0:03:02.5]} 7... Nd7 {[%clk 0:02:58.8]} 8. h5 {[%clk 0:03:02.6]} 8... Bh7
{[%clk 0:02:58.9]} 9. Bd3 {[%clk 0:03:02.8]} 9... Bxd3 {[%clk 0:02:59.5]} 10.
Qxd3 {[%clk 0:03:01.7]} 10... e6 {[%clk 0:03:00.4]} 11. Bf4 {[%clk 0:03:00]}
11... Qa5+ {[%clk 0:02:59.9]} 12. Kf1 {[%clk 0:02:59.6]} 12... Ngf6 {[%clk
0:02:56.2]} 13. c4 {[%clk 0:02:59]} 13... Be7 {[%clk 0:02:47.7]} 14. Kg1 {[%clk
0:02:58.4]} 14... Rd8 {[%clk 0:02:36.6]} 15. Qc2 {[%clk 0:02:57.6]} 15... c5
{[%clk 0:02:30.1]} 16. d5 {[%clk 0:02:56.9]} 16... exd5 {[%clk 0:02:26.4]} 17.
Nf5 {[%clk 0:02:56.4]} 17... Kf8 {[%clk 0:02:09.8]} 18. Re1 {[%clk 0:02:54.8]}
18... Ng8 {[%clk 0:01:55]} 19. cxd5 {[%clk 0:02:36.5]} 19... Nb6 {[%clk
0:01:50]} 20. Nxe7 {[%clk 0:02:12.8]} 20... Nxe7 {[%clk 0:01:49.7]} 21. Bc7
{[%clk 0:02:05.1]} 21... Rxd5 {[%clk 0:01:43.4]} 22. Qe4 {[%clk 0:01:52.2]}
22... Rd7 {[%clk 0:01:38.2]} 23. Bd8 {[%clk 0:01:29.6]} 23... Qxe1+ {[%clk
0:01:21.7]} 24. Nxe1 {[%clk 0:01:26]} 24... Rxd8 {[%clk 0:01:22.6]} 25. Qxb7
{[%clk 0:01:25.7]} 25... Ned5 {[%clk 0:01:16.4]} 26. Qxa7 {[%clk 0:01:17.9]}
26... Kg8 {[%clk 0:01:16.3]} 27. Nf3 {[%clk 0:01:14.2]} 27... f6 {[%clk
0:01:14.7]} 28. Rh4 {[%clk 0:01:07]} 28... Kh7 {[%clk 0:01:14]} 29. Rg4 {[%clk
0:01:06.2]} 29... Rhg8 {[%clk 0:01:13.9]} 30. Nh4 {[%clk 0:01:03.4]} 30... Rd7
{[%clk 0:01:09.4]} 31. Qa5 {[%clk 0:00:57.9]} 31... c4 {[%clk 0:01:07.4]} 32.
Nf5 {[%clk 0:00:54.4]} 32... Rf8 {[%clk 0:01:02.3]} 33. Qc5 {[%clk 0:00:43.6]}
33... Rc8 {[%clk 0:01:00.5]} 34. Qd4 {[%clk 0:00:40.6]} 34... Rcc7 {[%clk
0:00:48]} 35. Qe4 {[%clk 0:00:37.8]} 35... Kh8 {[%clk 0:00:47.6]} 36. Qe8+
{[%clk 0:00:35.4]} 36... Kh7 {[%clk 0:00:47.4]} 37. Qg6+ {[%clk 0:00:31.3]}
37... Kg8 {[%clk 0:00:44.9]} 38. Nxh6+ {[%clk 0:00:30.9]} 38... Kf8 {[%clk
0:00:44.9]} 39. Nf5 {[%clk 0:00:29.5]} 39... Ne7 {[%clk 0:00:41.6]} 40. Nxe7
{[%clk 0:00:27.8]} 40... Rxe7 {[%clk 0:00:41.7]} 41. h6 {[%clk 0:00:27.4]} 41...
f5 {[%clk 0:00:38.7]} 42. hxg7+ {[%clk 0:00:25.9]} 42... Rxg7 {[%clk 0:00:38.2]}
43. Qf6+ {[%clk 0:00:25.9]} 43... Kg8 {[%clk 0:00:37.8]} 44. Rxg7+ {[%clk
0:00:25.6]} 44... Rxg7 {[%clk 0:00:38]} 45. Qxb6 {[%clk 0:00:25.8]} 1-0

[Event "*** SCC Grand Prix: Titled Tuesday Blitz"]
[Site "Chess.com"]
[Date "2020.08.11"]
[Round "2"]
[White "emiliocordova"]
[Black "binbin239"]
[Result "1-0"]
[WhiteElo "2833"]
[BlackElo "2554"]
[TimeControl "180+1"]
[EndTime "10:18:35 PDT"]
[Termination "emiliocordova won by resignation"]

1. d4 {[%clk 0:03:00.9]} 1... Nf6 {[%clk 0:02:59.6]} 2. Nf3 {[%clk 0:03:01.8]}
2... g6 {[%clk 0:02:59.8]} 3. c4 {[%clk 0:03:02.3]} 3... Bg7 {[%clk 0:03:00]} 4.
g3 {[%clk 0:03:03.2]} 4... O-O {[%clk 0:02:59.7]} 5. Bg2 {[%clk 0:03:03.8]} 5...
d5 {[%clk 0:03:00.4]} 6. O-O {[%clk 0:03:04.6]} 6... dxc4 {[%clk 0:03:00.2]} 7.
Na3 {[%clk 0:03:04.8]} 7... Na6 {[%clk 0:03:00.4]} 8. Nxc4 {[%clk 0:03:04.7]}
8... c5 {[%clk 0:03:00.6]} 9. dxc5 {[%clk 0:03:02]} 9... Be6 {[%clk 0:03:00.4]}
10. Nfe5 {[%clk 0:03:01.5]} 10... Nxc5 {[%clk 0:02:45.8]} 11. Be3 {[%clk
0:03:00.4]} 11... Qc7 {[%clk 0:02:45.7]} 12. Rc1 {[%clk 0:02:51.1]} 12... Rfd8
{[%clk 0:02:43.2]} 13. Qe1 {[%clk 0:02:45.1]} 13... Nd5 {[%clk 0:02:34.4]} 14.
Bd4 {[%clk 0:02:34.4]} 14... Nb6 {[%clk 0:02:20.5]} 15. e3 {[%clk 0:02:01.4]}
15... Nxc4 {[%clk 0:02:17.4]} 16. Nxc4 {[%clk 0:02:01.2]} 16... Bxd4 {[%clk
0:02:17.4]} 17. exd4 {[%clk 0:02:01.4]} 17... Rxd4 {[%clk 0:02:17.9]} 18. Ne5
{[%clk 0:01:54.8]} 18... Qb6 {[%clk 0:02:07.9]} 19. b4 {[%clk 0:01:49.2]} 19...
Rxb4 {[%clk 0:01:59.3]} 20. Rxc5 {[%clk 0:01:48.4]} 20... Qxc5 {[%clk
0:01:52.6]} 21. Nd3 {[%clk 0:01:48.6]} 21... Qd4 {[%clk 0:01:50.3]} 22. Nxb4
{[%clk 0:01:47.8]} 22... a5 {[%clk 0:01:48.5]} 23. Nc2 {[%clk 0:01:45.2]} 23...
Qb2 {[%clk 0:01:41.2]} 24. Qb1 {[%clk 0:01:39]} 24... Qxa2 {[%clk 0:01:32.6]}
25. Qxa2 {[%clk 0:01:36.3]} 25... Bxa2 {[%clk 0:01:32.4]} 26. Bxb7 {[%clk
0:01:36.3]} 26... Rb8 {[%clk 0:01:32.4]} 27. Ra1 {[%clk 0:01:20.5]} 27... Bb3
{[%clk 0:01:26.1]} 28. Be4 {[%clk 0:01:20.5]} 28... a4 {[%clk 0:01:17.9]} 29.
Nd4 {[%clk 0:01:16.2]} 29... Rb4 {[%clk 0:00:40.6]} 30. Nxb3 {[%clk 0:01:16.3]}
30... axb3 {[%clk 0:00:40.9]} 31. f3 {[%clk 0:01:16.3]} 31... b2 {[%clk
0:00:38]} 32. Rb1 {[%clk 0:01:12.3]} 32... f5 {[%clk 0:00:37.1]} 33. Bd3 {[%clk
0:01:10.7]} 33... Kg7 {[%clk 0:00:37.2]} 34. Kf2 {[%clk 0:01:10.9]} 34... Kf6
{[%clk 0:00:37.4]} 35. Ke3 {[%clk 0:01:11.4]} 35... e5 {[%clk 0:00:36.2]} 36.
Kd2 {[%clk 0:01:10.8]} 36... e4 {[%clk 0:00:34.1]} 37. Kc3 {[%clk 0:01:09.6]}
37... Ra4 {[%clk 0:00:31.2]} 38. fxe4 {[%clk 0:01:09.5]} 38... fxe4 {[%clk
0:00:30.7]} 39. Bc2 {[%clk 0:01:09.9]} 39... Ra1 {[%clk 0:00:26.9]} 40. Rxb2
{[%clk 0:01:01.8]} 40... Kf5 {[%clk 0:00:22.2]} 41. Kd4 {[%clk 0:00:58.8]} 41...
Re1 {[%clk 0:00:19.7]} 42. h3 {[%clk 0:00:55.2]} 42... h5 {[%clk 0:00:16.8]} 43.
Rb5+ {[%clk 0:00:53.6]} 43... Kf6 {[%clk 0:00:16.9]} 44. Bxe4 {[%clk 0:00:53.9]}
44... Rd1+ {[%clk 0:00:17.3]} 45. Ke3 {[%clk 0:00:53.7]} 45... Re1+ {[%clk
0:00:17.6]} 46. Kf3 {[%clk 0:00:53.7]} 46... Rf1+ {[%clk 0:00:17.9]} 47. Ke2
{[%clk 0:00:53.8]} 47... Rg1 {[%clk 0:00:17.8]} 48. Kf2 {[%clk 0:00:54]} 48...
Rc1 {[%clk 0:00:17.5]} 49. Rb6+ {[%clk 0:00:51.5]} 49... Ke5 {[%clk 0:00:18]}
50. Bxg6 {[%clk 0:00:51.4]} 1-0

[Event "*** SCC Grand Prix: Titled Tuesday Blitz"]
[Site "Chess.com"]
[Date "2020.08.11"]
[Round "2"]
[White "CrushingKings"]
[Black "Ashedu66"]
[Result "1-0"]
[WhiteElo "2518"]
[BlackElo "2271"]
[TimeControl "180+1"]
[EndTime "10:18:35 PDT"]
[Termination "CrushingKings won on time"]

1. e4 {[%clk 0:03:00.9]} 1... e5 {[%clk 0:02:59.8]} 2. Nf3 {[%clk 0:03:00.7]}
2... Nc6 {[%clk 0:02:59.9]} 3. Bc4 {[%clk 0:03:01.2]} 3... Bc5 {[%clk
0:02:59.4]} 4. c3 {[%clk 0:03:01]} 4... Qe7 {[%clk 0:02:58.7]} 5. d3 {[%clk
0:03:01]} 5... Nf6 {[%clk 0:02:58.1]} 6. O-O {[%clk 0:03:01.5]} 6... d6 {[%clk
0:02:56.6]} 7. Re1 {[%clk 0:03:01.4]} 7... O-O {[%clk 0:02:56.5]} 8. h3 {[%clk
0:03:00.8]} 8... a6 {[%clk 0:02:50.9]} 9. Bb3 {[%clk 0:03:00.9]} 9... Ba7 {[%clk
0:02:44.7]} 10. Nbd2 {[%clk 0:03:01]} 10... Nd8 {[%clk 0:02:44.4]} 11. Nf1
{[%clk 0:02:59.6]} 11... Ne6 {[%clk 0:02:44.4]} 12. d4 {[%clk 0:02:57]} 12...
Rd8 {[%clk 0:02:20.8]} 13. Ng3 {[%clk 0:02:39.5]} 13... Qf8 {[%clk 0:02:09.5]}
14. Be3 {[%clk 0:02:23]} 14... exd4 {[%clk 0:01:52.2]} 15. Nxd4 {[%clk
0:02:21.5]} 15... Nc5 {[%clk 0:01:35.8]} 16. Bc2 {[%clk 0:02:20.1]} 16... Re8
{[%clk 0:01:32.1]} 17. Bg5 {[%clk 0:02:15.9]} 17... Nfd7 {[%clk 0:01:27.4]} 18.
Ndf5 {[%clk 0:02:00.7]} 18... Ne5 {[%clk 0:01:18.8]} 19. Be3 {[%clk 0:01:50]}
19... Ng6 {[%clk 0:01:12.5]} 20. Bd4 {[%clk 0:01:45.8]} 20... Ne6 {[%clk
0:01:09.8]} 21. Bxa7 {[%clk 0:01:42.2]} 21... Rxa7 {[%clk 0:01:09.6]} 22. Nh5
{[%clk 0:01:27.6]} 22... Ra8 {[%clk 0:00:57.3]} 23. Qg4 {[%clk 0:01:21.4]} 23...
Nc5 {[%clk 0:00:45]} 24. b4 {[%clk 0:01:20.8]} 24... Nd7 {[%clk 0:00:32.3]} 25.
Nhxg7 {[%clk 0:01:16.6]} 25... Nde5 {[%clk 0:00:18.2]} 26. Qh5 {[%clk
0:01:11.2]} 26... Kh8 {[%clk 0:00:14.5]} 27. Qg5 {[%clk 0:01:05]} 27... Re6
{[%clk 0:00:10.4]} 28. Nxe6 {[%clk 0:00:52.6]} 28... fxe6 {[%clk 0:00:10.1]} 29.
Ng3 {[%clk 0:00:52.1]} 29... Bd7 {[%clk 0:00:09.9]} 30. Rf1 {[%clk 0:00:51.3]}
30... Bc6 {[%clk 0:00:05.2]} 31. f4 {[%clk 0:00:50.4]} 31... Nc4 {[%clk
0:00:05.3]} 32. f5 {[%clk 0:00:46.3]} 32... exf5 {[%clk 0:00:03.4]} 33. Rxf5
{[%clk 0:00:43.8]} 33... Qe7 {[%clk 0:00:02]} 34. Qxe7 {[%clk 0:00:34.3]} 34...
Nxe7 {[%clk 0:00:01.9]} 35. Rf7 {[%clk 0:00:35.2]} 35... Ng6 {[%clk 0:00:01.8]}
36. Raf1 {[%clk 0:00:31.7]} 1-0